bitfinex/quotes_ETHUSD_20251011
["timestamp","ask_amount","ask_price","bid_price","bid_amount"]
[1760213596394,0.1328,3752.9,3752.3,5.70084888]
[1760213597018,0.1328,3753.4,3752.3,5.70084888]
[1760213599624,0.1328,3753.4,3752.3,3.03581677]
[1760213599924,0.6336,3754.1,3752.3,5.03503211]
[1760213600233,0.6336,3754.5,3752.3,5.03503211]
[1760213600928,0.4634,3754.9,3752.3,5.66863211]
[1760213601143,1e-08,3753.2,3753.1,5.21806404]
[1760213601638,1e-08,3753.2,3753.1,5.66806404]
[1760213601939,1e-08,3753.2,3753.1,6.50132659]
[1760213604712,1e-08,3753.2,3753.1,5.86772659]
[1760213605338,1e-08,3753.2,3753.1,6.50132659]
[1760213607319,3.13434405,3755.5,3754.7,2.66330529]
[1760213607515,3.13434405,3755.5,3753.6,1.92]
[1760213607858,2.66288453,3755.4,3754.5,2.66341329]
[1760213608155,2.66290499,3755.3,3754.3,2.66360239]
[1760213608454,0.001,3756.1,3755.2,2.66292755]
[1760213608658,2.66242245,3756.0,3755.2,2.66296315]
[1760213608874,0.001,3756.1,3755.6,2.66268575]
[1760213608875,0.001,3755.9,3755.6,2.66268575]
[1760213609160,0.001,3755.9,3754.5,0.4284]
[1760213609461,0.001,3755.9,3755.8,2.66254859]
[1760213611887,0.001,3755.9,3755.8,5.01094859]
[1760213612086,0.001,3755.9,3755.8,5.14374859]
[1760213612996,0.001,3755.9,3755.8,4.71534859]
[1760213613295,0.001,3755.9,3755.8,5.14374859]
[1760213613448,0.001,3755.9,3755.8,5.92438769]
[1760213613864,0.001,3755.9,3755.8,6.55798769]
[1760213616585,0.001,3755.9,3755.8,5.92438769]
[1760213617570,0.001,3756.5,3756.4,2.6621233]
[1760213617795,0.001,3756.5,3756.4,4.98113563]
[1760213618092,0.001,3756.5,3756.4,5.40953563]
[1760213620099,0.001,3756.5,3756.4,0.1328]
[1760213620407,0.001,3756.5,3755.9,0.1128]
[1760213620408,0.1338,3756.5,3755.9,0.1328]
[1760213620604,0.1338,3756.5,3754.2,2.78295099]
[1760213620605,0.1328,3756.2,3755.6,0.1328]
[1760213620786,0.1328,3755.9,3754.8,0.4289]
[1760213620990,0.1328,3755.9,3755.1,0.1328]
[1760213621196,0.1328,3755.7,3755.1,0.1328]
[1760213621503,0.1328,3755.7,3755.6,2.662634]
[1760213621669,0.1328,3755.7,3755.1,0.5617]
[1760213621670,0.001,3756.5,3756.0,2.66240632]
[1760213622003,0.1328,3756.0,3755.9,2.66246075]
[1760213622172,0.1328,3756.0,3755.5,2.66269911]
[1760213622377,0.1328,3756.0,3755.4,0.1328]
[1760213622600,0.001,3755.9,3755.8,2.66254859]
[1760213623062,0.001,3755.9,3755.8,5.01144859]
[1760213623263,0.001,3755.9,3755.8,5.91165776]
[1760213623582,0.001,3755.9,3755.8,2.0528]
[1760213623785,0.1338,3755.9,3755.8,2.66254859]
[1760213623987,0.1338,3755.9,3755.2,0.1328]
[1760213624289,0.1328,3755.7,3755.4,2.66283218]
[1760213624729,0.1328,3755.7,3754.6,0.4289]
[1760213624730,0.4562,3755.6,3754.4,2.66354144]
[1760213624913,0.1328,3755.4,3755.3,2.66290309]
[1760213625116,0.001,3755.9,3754.7,0.1328]
[1760213625117,0.001,3755.9,3755.8,2.66254859]
[1760213625686,0.001,3755.9,3755.8,2.68917407]
[1760213625907,0.001,3755.9,3755.8,2.66254859]
[1760213626106,0.4572,3755.9,3755.5,1.92]
[1760213626330,0.1328,3755.6,3755.3,1.92]
[1760213626637,0.4562,3755.5,3754.9,2.66312804]
[1760213626934,0.1328,3755.2,3755.0,2.6630674]
[1760213627118,0.1328,3755.2,3755.1,1.92]
[1760213627335,0.1328,3755.2,3754.6,0.1328]
[1760213627633,0.1328,3755.2,3755.1,2.66304492]
[1760213627929,0.1328,3755.2,3754.7,2.66332862]
[1760213628241,0.1328,3754.8,3754.2,0.1328]
[1760213628455,0.1328,3754.8,3754.2,2.79645787]
[1760213628654,0.4562,3754.7,3753.1,0.002]
[1760213628945,0.6336,3755.6,3753.7,0.1328]
[1760213628946,0.1328,3754.3,3753.7,0.1328]
[1760213629149,0.2229,3755.8,3754.9,2.6631852]
[1760213629306,0.2229,3755.8,3754.1,0.1328]
[1760213629307,0.1328,3754.8,3754.4,2.66354144]
[1760213629507,0.1328,3754.8,3754.7,4.58332862]
[1760213629734,0.1328,3755.3,3755.2,2.66290695]
[1760213631347,0.001,3755.9,3755.8,2.66254859]
[1760213631643,0.001,3755.9,3755.1,2.66304492]
[1760213631644,0.4572,3755.9,3755.4,2.66277316]
[1760213631852,0.001,3755.9,3755.5,2.66274474]
[1760213632168,0.001,3755.9,3755.6,2.66266432]
[1760213632446,0.001,3755.9,3754.8,2.66319673]
[1760213632447,0.001,3755.9,3755.8,2.66254859]
[1760213633115,0.6882,3755.9,3754.6,1.92]
[1760213633341,0.6336,3755.6,3754.4,1.92]
[1760213633515,0.4531,3755.5,3754.7,2.66326846]
[1760213633721,2.6629585,3755.3,3753.4,0.4406]
[1760213634046,0.4531,3755.5,3754.8,2.6631925]
[1760213634247,0.4531,3755.5,3754.9,2.66312115]
[1760213634451,0.4531,3755.5,3754.8,2.66324701]
[1760213634610,3.11587138,3755.5,3754.6,4.58334536]
[1760213634812,0.2369399,3755.9,3755.3,2.66284684]
[1760213634813,0.001,3755.9,3755.3,2.66284684]
[1760213635017,0.001,3755.9,3755.3,2.66284831]
[1760213635208,0.001,3755.9,3754.8,1.92]
[1760213635528,0.001,3755.9,3755.5,2.66275704]
[1760213635729,0.001,3755.9,3755.2,2.66297054]
[1760213635730,0.001,3755.9,3755.8,2.66254859]
[1760213635943,0.001,3755.9,3755.0,1.92]
[1760213636147,0.6872,3755.8,3755.0,2.66310656]
[1760213636331,0.6872,3755.8,3754.7,2.66332862]
[1760213636532,0.6872,3755.7,3754.9,2.66318128]
[1760213636736,1.0867,3755.6,3754.5,1.92]
[1760213636934,0.6336,3755.2,3753.3,0.4406]
[1760213637129,1.0867,3755.2,3754.5,2.66340743]
[1760213637639,1.0867,3755.2,3754.5,2.6634127]
[1760213637974,0.4531,3755.2,3754.2,1.92]
[1760213638184,0.001,3755.9,3754.3,0.85123612]
[1760213638458,0.001,3755.9,3755.6,2.66267968]
[1760213639024,0.001,3755.9,3754.4,0.4406]
[1760213639025,0.001,3755.9,3755.7,0.02662619]
[1760213639228,0.001,3755.9,3754.9,0.4406]
[1760213639229,0.001,3755.9,3755.8,2.66254859]
[1760213640062,0.001,3755.9,3755.6,2.66267815]
[1760213640063,0.001,3755.9,3755.6,2.66263793]
[1760213640234,0.001,3755.9,3754.5,0.4406]
[1760213640235,0.4531,3755.8,3755.4,2.66276154]
[1760213640440,0.4531,3755.8,3755.0,0.002]
[1760213640441,0.4531,3755.7,3755.0,0.002]
[1760213641566,3.11572297,3755.7,3755.0,0.002]
[1760213641874,0.4531,3755.7,3755.1,2.66304346]
[1760213642034,0.001,3755.9,3755.5,2.66269691]
[1760213642239,0.001,3755.9,3755.0,0.002]
[1760213642240,0.001,3755.9,3755.6,2.66268586]
[1760213642537,0.1328,3755.7,3755.0,1.922]
[1760213642735,0.1328,3755.7,3755.6,2.66269038]
[1760213642977,0.001,3755.9,3755.8,2.66254859]
[1760213643330,0.001,3755.9,3755.5,0.1328]
[1760213643561,0.6336,3755.7,3755.0,0.002]
[1760213643772,0.4531,3755.6,3755.0,2.66510648]
[1760213643991,0.4531,3755.6,3755.0,0.002]
[1760213644294,3.29692862,3754.7,3752.6,3.10535675]
[1760213644587,0.4531,3755.6,3754.4,2.66349128]
[1760213644758,0.6336,3755.4,3754.3,2.66359607]
[1760213644959,0.6336,3755.4,3754.4,2.66353839]
[1760213645155,0.4531,3755.6,3754.2,1.92]
[1760213645358,0.6336,3755.5,3755.0,2.66310913]
[1760213645562,0.4531,3755.5,3754.2,1.92]
[1760213645759,0.4541,3755.9,3755.1,2.66297743]
[1760213645982,2.66274232,3755.6,3754.7,2.66326491]
[1760213646266,2.66289498,3755.4,3754.5,2.66345341]
[1760213646599,2.66300573,3755.2,3754.3,2.66354976]
[1760213646764,2.66300573,3755.2,3754.4,2.66352178]
[1760213647562,0.4531,3755.3,3754.3,2.66359289]
[1760213647776,0.4531,3755.3,3753.8,1.92]
[1760213648096,0.4531,3755.3,3754.2,2.66361879]
[1760213648299,0.6336,3755.2,3753.1,0.002]
[1760213648475,3.29692862,3754.7,3753.1,0.002]
[1760213648671,3.29692862,3754.7,3753.8,1.92]
[1760213648879,3.75002862,3754.7,3753.6,4.58409676]
[1760213649087,3.75002862,3754.7,3753.1,0.002]
[1760213649595,3.75002862,3754.7,3753.6,2.6641017]
[1760213649769,3.75002862,3754.7,3753.4,2.66423419]
[1760213650110,3.75002862,3754.7,3753.1,0.002]
[1760213650111,26.46989134,3754.7,3753.1,0.002]
[1760213650466,26.47207161,3754.7,3753.1,0.002]
[1760213651332,3.53209305,3753.2,3753.1,0.002]
[1760213651621,5.45209305,3753.2,3753.1,0.002]
[1760213651789,5.90519305,3753.2,3753.1,0.002]
[1760213652401,3.2408,3753.2,3753.1,0.002]
[1760213652600,5.90519305,3753.2,3753.1,0.002]
[1760213652822,3.2408,3753.2,3753.1,0.002]
[1760213653013,0.6872,3753.8,3753.1,0.002]
[1760213653211,2.6072,3753.8,3753.1,0.002]
[1760213653412,0.6336,3753.7,3753.1,2.66644417]
[1760213653786,0.6336,3753.7,3753.1,0.002]
[1760213653986,3.29766465,3753.7,3753.1,0.002]
[1760213654227,0.6336,3753.7,3753.1,0.002]
[1760213654611,2.6637242,3754.2,3753.4,2.664185]
[1760213654789,0.2341,3754.3,3753.1,0.002]
[1760213655311,0.4531,3754.2,3753.1,0.002]
[1760213655843,2.66396883,3753.8,3753.1,0.002]
[1760213655991,2.66403183,3753.8,3753.1,0.002]
[1760213656197,0.4531,3753.7,3753.1,0.002]
[1760213656397,0.6336,3753.6,3753.1,0.002]
[1760213656704,0.4531,3753.9,3753.1,0.002]
[1760213656918,0.4531,3753.9,3753.2,2.66439305]
[1760213657119,0.4531,3753.8,3753.1,0.002]
[1760213657297,0.6336,3753.7,3753.1,0.002]
[1760213657495,0.4531,3753.8,3753.4,2.66420767]
[1760213657693,0.2341,3754.3,3753.1,0.002]
[1760213657938,0.4531,3754.4,3753.1,0.002]
[1760213658242,0.001,3755.9,3754.2,2.77844303]
[1760213658422,0.001,3755.9,3755.0,1.92]
[1760213658594,0.001,3755.9,3754.3,0.93708042]
[1760213658595,0.001,3755.9,3754.7,1.92]
[1760213658799,0.001,3755.9,3755.8,2.66254859]
[1760213660133,0.001,3755.9,3754.7,0.4406]
[1760213660435,0.001,3755.9,3755.6,2.66268821]
[1760213660730,0.001,3755.9,3755.3,2.66283522]
[1760213661029,0.001,3755.9,3755.4,0.02662832]
[1760213661434,0.001,3755.9,3755.8,2.66254859]
[1760213661929,0.001,3755.9,3755.6,2.66263252]
[1760213662229,0.001,3755.9,3755.7,2.66258684]
[1760213662425,0.4541,3755.9,3755.5,2.66272534]
[1760213662627,0.001,3755.9,3754.6,2.66533841]
[1760213662801,0.001,3755.9,3754.7,2.18653384]
[1760213663426,0.001,3755.9,3755.4,2.66282076]
[1760213663799,0.4308,3755.8,3754.6,0.002]
[1760213664219,0.4308,3755.8,3754.8,2.66325769]
[1760213664632,0.4308,3755.8,3755.0,2.66304618]
[1760213664928,2.66261948,3755.7,3754.6,2.66539306]
[1760213665132,0.6336,3755.6,3754.6,0.002]
[1760213665427,0.1328,3754.7,3754.6,0.002]
[1760213665629,0.1328,3754.7,3754.6,4.58539956]
[1760213665802,0.1328,3754.7,3754.6,2.66539956]
[1760213666717,0.6336,3755.8,3754.9,2.66315379]
[1760213667065,0.2149,3755.9,3754.6,0.4483]
[1760213667220,0.1328,3755.4,3755.3,2.66290309]
[1760213667419,0.1328,3755.4,3755.2,2.66296631]
[1760213667854,0.1328,3755.4,3755.3,2.66290309]
[1760213669334,0.1328,3755.4,3754.8,2.66325769]
[1760213669530,0.001,3755.9,3755.8,4.58254859]
[1760213671024,0.001,3755.9,3755.8,5.05547407]
[1760213671223,0.001,3755.9,3755.8,4.58254859]
[1760213671464,0.001,3755.9,3755.8,5.02884859]
[1760213671955,0.001,3755.9,3755.8,4.58254859]
[1760213672256,0.001,3755.9,3755.8,5.05547407]
[1760213672457,0.001,3755.9,3755.8,5.75336777]
[1760213673829,0.001,3755.9,3755.8,6.38696777]
[1760213674029,0.001,3755.9,3755.8,5.75336777]
[1760213674271,0.001,3755.9,3755.8,4.58254859]
[1760213674842,0.001,3755.9,3755.7,2.66260553]
[1760213675041,0.001,3755.9,3755.1,0.4463]
[1760213675226,0.001,3755.9,3755.7,2.66257199]
[1760213675431,0.001,3755.9,3755.1,0.4463]
[1760213675734,0.001,3755.9,3755.8,2.66254859]
[1760213676932,0.001,3755.9,3755.8,3.13547407]
[1760213677133,0.001,3755.9,3755.8,2.66254859]
[1760213677434,0.001,3755.9,3755.0,2.66304857]
[1760213677633,0.001,3755.9,3755.8,2.66254859]
[1760213679071,0.001,3755.9,3755.1,0.68293]
[1760213679272,0.001,3755.9,3754.5,0.4463]
[1760213679443,0.1328,3755.4,3754.8,0.1328]
[1760213679648,0.1328,3755.4,3755.0,2.66306243]
[1760213679953,0.1328,3755.4,3755.1,4.58302314]
[1760213680352,0.001,3755.9,3754.6,0.002]
[1760213680532,0.1328,3755.3,3755.1,1.92]
[1760213680728,0.1328,3755.3,3754.7,0.1328]
[1760213681154,0.1328,3755.3,3755.1,2.66303114]
[1760213681570,0.1328,3755.3,3754.9,1.92]
[1760213681571,0.1328,3755.3,3754.9,2.66316582]
[1760213681783,0.1328,3755.3,3754.9,2.66312223]
[1760213681982,0.1328,3755.3,3754.8,2.66325769]
[1760213682186,0.1328,3755.3,3754.9,1.92]
[1760213682595,0.5737,3755.3,3754.9,2.6631717]
[1760213682900,0.4409,3755.3,3754.6,0.002]
[1760213683064,0.6336,3755.1,3754.6,0.002]
[1760213683265,3.29665793,3755.1,3754.6,0.002]
[1760213683591,0.4409,3755.0,3754.6,0.002]
[1760213684091,0.227,3755.9,3754.6,0.002]
[1760213684092,0.4409,3755.6,3754.6,0.002]
[1760213684261,0.4409,3755.6,3754.6,2.66536899]
[1760213684591,0.001,3755.9,3755.3,2.66283503]
[1760213684750,0.1328,3755.4,3754.7,0.1328]
[1760213684956,0.1328,3755.4,3755.3,2.66290309]
[1760213685276,0.1328,3755.4,3754.7,0.1328]
[1760213685962,0.6336,3755.7,3755.0,2.66305843]
[1760213686156,3.29622276,3755.7,3755.0,2.66305843]
[1760213686360,0.1328,3755.0,3754.9,2.66317411]
[1760213686663,3.10382049,3755.3,3754.6,0.002]
[1760213686863,0.4409,3754.9,3754.6,0.002]
[1760213687254,2.66332862,3754.7,3754.6,0.002]
[1760213687455,3.29692862,3754.7,3754.6,0.002]
[1760213687661,3.73782862,3754.7,3754.6,0.002]
[1760213688900,5.66009401,3754.7,3754.6,0.002]
[1760213689264,0.00232215,3754.5,3754.2,0.002]
[1760213689577,7.08782862,3754.7,3752.7,0.002]
[1760213689578,5.22068428,3753.2,3752.7,0.002]
[1760213689756,2.66429321,3753.4,3752.7,0.002]
[1760213689757,3.29827704,3752.8,3752.7,0.002]
[1760213689957,5.21827704,3752.8,3752.7,0.002]
[1760213690155,5.65917704,3752.8,3752.7,0.002]
[1760213690668,2.9945,3752.8,3752.7,0.002]
[1760213691066,0.226,3753.3,3752.7,0.002]
[1760213691266,1.00099999,3756.4,3752.9,1.92]
[1760213691267,0.4409,3755.4,3752.9,1.92]
[1760213691488,0.4409,3755.3,3753.2,1.92]
[1760213691688,0.4409,3755.2,3753.0,0.23800468]
[1760213691865,0.4409,3755.7,3754.3,2.66356018]
[1760213692205,0.227,3755.9,3754.3,0.4314]
[1760213692360,0.227,3755.9,3754.2,0.1148]
[1760213692361,2.66262759,3755.7,3754.2,0.1148]
[1760213692565,0.6336,3755.6,3754.2,0.1148]
[1760213692762,3.29629232,3755.6,3754.7,2.66329417]
[1760213692960,3.29629232,3755.6,3754.8,2.66324359]
[1760213693301,0.6336,3755.7,3754.3,0.002]
[1760213693469,0.6336,3755.0,3754.3,0.002]
[1760213693670,2.66337951,3754.7,3754.3,0.002]
[1760213693972,1.1045,3754.9,3754.3,0.002]
[1760213694168,0.6336,3754.4,3754.3,0.002]
[1760213694366,3.29714144,3754.4,3754.3,0.002]
[1760213694555,3.76804144,3754.4,3754.3,0.002]
[1760213695300,5.68804144,3754.4,3754.3,0.002]
[1760213696663,3.0245,3754.4,3754.3,0.002]
[1760213696902,5.68804144,3754.4,3754.3,0.002]
[1760213697102,3.29742525,3754.0,3753.9,0.002]
[1760213697461,3.76832525,3754.0,3753.9,0.002]
[1760213697906,1.1045,3754.0,3753.9,0.002]
[1760213698058,2.66296607,3755.3,3753.9,2.66589621]
[1760213698257,0.001,3756.5,3754.0,0.4505]
[1760213698557,0.001,3755.9,3754.3,1.92]
[1760213698762,0.001,3755.9,3754.5,2.66341618]
[1760213699074,0.001,3755.9,3755.6,2.66268032]
[1760213699399,0.4719,3755.9,3754.0,2.3705]
[1760213699596,0.4719,3755.9,3754.4,4.58354144]
[1760213699597,0.6905,3755.9,3754.4,4.58354144]
[1760213699810,0.001,3755.9,3754.7,4.58332862]
[1760213700103,0.6346,3755.9,3755.1,2.66303216]
[1760213700400,0.6346,3755.9,3754.5,0.4505]
[1760213700401,0.001,3755.9,3755.5,2.66275808]
[1760213700557,0.001,3755.9,3754.7,2.66326335]
[1760213700558,0.001,3755.9,3755.4,2.66282601]
[1760213700763,0.001,3755.9,3755.6,2.66269038]
[1760213700989,0.001,3755.9,3755.8,2.66254859]
[1760213701192,0.001,3755.9,3755.8,2.68917407]
[1760213701373,0.001,3755.9,3755.8,3.13967407]
[1760213701696,0.001,3755.9,3755.8,4.58254859]
[1760213701868,0.001,3755.9,3755.8,4.60917407]
[1760213702464,0.001,3755.9,3755.6,1.92]
[1760213702779,0.001,3755.9,3754.5,0.4505]
[1760213703197,2.66286297,3755.4,3754.5,2.6634682]
[1760213703400,0.6336,3755.4,3753.9,0.4525]
[1760213703572,0.6336,3755.4,3753.9,0.002]
[1760213703573,2.66290309,3755.3,3753.9,0.002]
[1760213703907,0.47288169,3755.4,3753.9,0.002]
[1760213704064,0.6336,3755.1,3753.9,0.002]
[1760213704471,0.6336,3754.9,3753.9,0.002]
[1760213704766,0.4709,3755.2,3753.9,0.002]
[1760213704767,0.4709,3755.2,3753.9,0.02863896]
[1760213704989,3.29624975,3755.7,3754.4,2.66350541]
[1760213705192,0.001,3755.9,3755.8,2.66254859]
[1760213705497,0.001,3755.9,3755.1,0.4505]
[1760213705703,0.001,3755.9,3755.8,2.66254859]
[1760213706292,0.001,3755.9,3755.4,0.4505]
[1760213706503,0.001,3755.9,3754.9,0.4505]
[1760213706866,0.1328,3755.7,3755.0,0.1328]
[1760213707211,0.1328,3755.7,3755.6,2.66269038]
[1760213707864,0.1328,3755.7,3755.5,2.66275671]
[1760213708065,0.001,3755.9,3755.8,2.66254859]
[1760213708803,0.001,3755.9,3755.8,3.24584859]
[1760213709108,0.001,3755.9,3755.8,5.16584859]
[1760213709414,0.001,3755.9,3755.8,5.81856511]
[1760213709761,1e-08,3756.4,3756.3,2.66219418]
[1760213710100,0.001,3758.1,3756.8,4.58183986]
[1760213710596,0.001,3758.1,3756.8,5.03233986]
[1760213711967,0.6895,3757.9,3756.8,2.66183986]
[1760213712164,0.6895,3757.9,3756.2,0.1193]
[1760213712382,0.6895,3757.9,3756.6,2.66195324]
[1760213712383,0.4709,3757.9,3756.6,2.66195324]
[1760213712581,2.6611437,3757.8,3756.7,2.68850232]
[1760213712777,3.29465111,3758.0,3756.8,2.68845825]
[1760213713002,0.001,3758.1,3756.8,5.14350171]
[1760213713305,0.001,3758.1,3756.8,5.56738332]
[1760213716683,0.001,3758.1,3756.8,6.20098332]
[1760213718414,0.001,3758.1,3757.6,4.58127315]
[1760213718785,0.001,3758.1,3757.6,5.05838588]
[1760213718976,0.001,3758.1,3757.6,5.80374858]
[1760213719176,0.001,3758.1,3757.6,2.69197543]
[1760213719376,0.001,3758.1,3757.6,4.71407315]
[1760213719700,0.1328,3758.0,3757.3,0.1328]
[1760213719900,0.1328,3758.0,3757.6,2.66127315]
[1760213720080,0.1328,3758.0,3757.5,1.92]
[1760213720281,0.1328,3758.0,3757.3,2.0528]
[1760213720608,0.1328,3758.0,3757.4,1.92]
[1760213720819,0.001,3758.1,3757.6,4.58127315]
[1760213720993,0.001,3758.1,3757.6,4.71407315]
[1760213721488,0.001,3758.1,3757.6,5.16457315]
[1760213722114,0.001,3758.1,3758.0,2.66098988]
[1760213722322,2.65855351,3761.5,3758.0,2.66098988]
[1760213722323,0.2186,3760.7,3758.0,1.94660989]
[1760213722612,1.21859999,3764.1,3759.6,4.57985743]
[1760213722613,2.65880909,3761.1,3759.6,4.57985743]
[1760213722917,0.001,3761.6,3759.6,4.606456]
[1760213723216,0.001,3761.6,3760.0,2.65957446]
[1760213723414,0.001,3761.6,3760.0,4.6061702]
[1760213723617,0.001,3761.6,3760.0,5.03137446]
[1760213723924,0.4392,3761.6,3760.0,4.57957446]
[1760213724132,0.001,3761.6,3760.0,1.92]
[1760213724282,0.4382,3761.3,3760.0,1.92]
[1760213724614,0.6336,3761.2,3760.0,1.92]
[1760213724984,2.65901482,3760.8,3760.0,1.92]
[1760213725180,2.65880915,3761.1,3760.0,4.57957446]
[1760213725383,2.66022687,3760.5,3759.6,2.65985281]
[1760213725730,0.001,3760.5,3757.6,22.88043513]
[1760213725893,2.66000412,3759.4,3758.2,2.66084242]
[1760213726098,2.66027035,3759.1,3757.5,0.1228]
[1760213726289,2.66043695,3758.8,3757.5,0.1228]
[1760213726485,2.66043695,3758.8,3756.2,20.33851415]
[1760213726486,0.4382,3758.8,3757.0,0.1228]
[1760213726686,0.4382,3758.8,3756.2,0.1193]
[1760213726920,0.6336,3758.7,3757.1,0.4518]
[1760213727232,0.4382,3758.6,3756.2,0.1193]
[1760213727386,0.6336,3758.4,3756.2,0.1193]
[1760213727584,0.43927486,3758.6,3753.5,0.002]
[1760213727585,17.41174933,3757.8,3753.5,0.002]
[1760213727824,0.63569515,3755.3,3753.5,0.002]
[1760213728024,0.6336,3754.0,3753.5,0.002]
[1760213728183,1.92,3755.1,3753.5,0.002]
[1760213728389,0.4382,3755.2,3753.5,0.002]
[1760213728588,0.6336,3755.1,3753.5,0.0286418]
[1760213728813,0.6336,3755.6,3753.9,0.02863896]
[1760213728983,0.6336,3754.6,3753.9,0.002]
[1760213729184,2.66295253,3755.3,3753.9,0.002]
[1760213729418,0.6336,3755.2,3753.9,0.002]
[1760213729686,2.66379503,3754.1,3753.9,0.002]
[1760213730122,0.6336,3754.4,3753.9,0.002]
[1760213730291,0.4382,3754.5,3753.9,0.002]
[1760213730292,2.5536,3754.0,3753.9,0.002]
[1760213730487,3.30020158,3753.6,3753.1,0.002]
[1760213730702,3.29827704,3752.8,3752.3,0.002]
[1760213731121,3.73647704,3752.8,3752.3,0.002]
[1760213731306,0.6336,3752.7,3752.3,0.002]
[1760213731513,3.29856109,3752.4,3752.3,0.002]
[1760213731917,3.73676109,3752.4,3752.3,0.002]
[1760213732327,5.65676109,3752.4,3752.3,0.002]
[1760213732841,0.4382,3752.4,3752.3,0.002]
[1760213733209,0.4382,3753.1,3752.3,0.002]
[1760213733405,3.10231348,3753.6,3752.3,0.002]
[1760213733647,0.1328,3752.7,3752.6,4.58481905]
[1760213733857,0.1328,3753.3,3753.1,2.66442528]
[1760213734155,0.1328,3753.3,3753.1,2.66445718]
[1760213734342,0.4382,3754.7,3753.2,0.02664393]
[1760213734516,0.1328,3753.6,3753.0,0.1328]
[1760213734843,0.1328,3753.6,3753.5,2.66418009]
[1760213735044,0.2311,3754.9,3753.1,2.66445834]
[1760213735045,0.6336,3753.9,3753.1,2.66445834]
[1760213735248,0.1328,3753.4,3752.7,0.1328]
[1760213735410,0.1328,3753.4,3753.0,1.92]
[1760213735611,0.6336,3753.9,3752.6,2.66477968]
[1760213735841,0.1328,3753.1,3752.4,2.0528]
[1760213736012,0.4382,3753.8,3752.3,0.002]
[1760213736209,0.4382,3753.8,3752.7,2.66474804]
[1760213736210,0.1328,3752.8,3752.7,2.66474804]
[1760213736511,0.6336,3752.7,3752.4,2.66496109]
[1760213736710,0.1328,3752.4,3752.3,0.002]
[1760213736967,0.1328,3752.4,3752.3,2.66703211]
[1760213737443,0.4382,3754.0,3752.3,5.12291431]
[1760213737645,0.1328,3753.3,3752.4,2.39844961]
[1760213737948,0.4382,3754.5,3754.1,2.66373119]
[1760213738161,0.4382,3754.5,3754.2,2.6636768]
[1760213738447,0.4382,3754.4,3753.7,2.66402761]
[1760213738658,0.6336,3754.3,3752.3,0.002]
[1760213739014,0.6336,3754.3,3752.3,0.02865032]
[1760213739224,0.6336,3754.3,3753.7,2.66402836]
[1760213739513,2.5536,3753.9,3751.7,2.66542543]
[1760213739744,2.5536,3753.9,3752.9,2.66453514]
[1760213740054,3.10217146,3753.8,3752.3,0.002]
[1760213740261,0.6336,3753.5,3752.3,0.002]
[1760213740414,0.6336,3753.5,3748.4,1.34419661]
[1760213740415,2.5536,3752.3,3747.6,0.13942822]
[1760213740751,0.6336,3751.3,3750.1,2.66657581]
[1760213740956,0.6336,3751.1,3748.9,2.66743837]
[1760213741165,0.6336,3750.6,3748.8,2.66752004]
[1760213741355,0.6336,3750.6,3748.5,0.5775]
[1760213741545,0.6336,3750.7,3749.5,2.66700177]
[1760213741740,1.0754,3750.5,3748.5,0.5775]
[1760213741940,1.0754,3750.5,3749.5,2.66701434]
[1760213741941,0.6336,3750.3,3749.5,2.66701434]
[1760213742141,0.6336,3750.3,3749.4,2.66702307]
[1760213742368,3.52653777,3749.9,3747.9,0.4582]
[1760213742568,0.8598,3749.9,3748.9,2.66742331]
[1760213742866,3.96833777,3749.9,3748.9,2.66744244]
[1760213743168,3.96833777,3749.9,3748.2,1.92]
[1760213743169,1.3016,3749.9,3748.2,2.66790421]
[1760213743471,1.3016,3749.9,3748.8,2.66749805]
[1760213743671,3.29985037,3750.6,3749.7,2.66686455]
[1760213743876,0.6336,3750.6,3748.6,1.92]
[1760213744080,0.4418,3750.7,3749.9,2.66673777]
[1760213744243,2.66599457,3751.0,3749.9,2.66672755]
[1760213744573,0.6336,3750.9,3749.1,2.3782]
[1760213744734,0.6336,3750.9,3749.7,2.6668332]
[1760213744932,0.6336,3751.0,3749.1,0.4582]
[1760213745154,0.6336,3751.0,3749.9,2.66672619]
[1760213745392,0.6336,3751.0,3749.1,0.4582]
[1760213745678,0.6336,3750.6,3748.1,0.1193]
[1760213745973,0.4418,3750.9,3749.8,2.66874696]
[1760213745974,2.66610701,3750.8,3749.8,2.66874696]
[1760213746146,0.6336,3750.8,3749.8,0.002]
[1760213746348,0.4418,3750.9,3749.8,0.002]
[1760213746349,0.6336,3750.6,3749.8,0.002]
[1760213746884,0.6336,3750.4,3749.8,0.002]
[1760213747041,0.6336,3750.4,3749.9,2.66673656]
[1760213747236,0.6336,3750.4,3749.8,0.002]
[1760213747237,0.6336,3750.8,3749.8,0.002]
[1760213747450,0.6336,3750.2,3749.8,0.002]
[1760213747636,0.6336,3750.8,3749.8,0.002]
[1760213747858,0.6336,3750.5,3749.8,0.002]
[1760213748168,0.1328,3750.0,3749.9,2.66673777]
[1760213748540,0.4428,3753.5,3750.0,2.5536]
[1760213748744,0.4428,3753.5,3750.4,1.92]
[1760213748745,0.4418,3753.4,3750.4,1.92]
[1760213748942,0.4418,3753.4,3750.6,1.92]
[1760213749145,0.6336,3753.2,3751.5,2.66559946]
[1760213749377,0.4418,3753.1,3750.5,0.4582]
[1760213749549,0.6336,3752.3,3751.2,2.6657546]
[1760213749744,0.4418,3752.4,3751.4,2.66567148]
[1760213750054,2.66469201,3752.8,3751.9,2.66524959]
[1760213750258,2.66469201,3752.8,3752.0,2.66522863]